bitfinex-derivatives/quotes_ETHF0:USTF0_20260120
["timestamp","ask_amount","ask_price","bid_price","bid_amount"]
[1768942597618,0.88670852,3004.7,3003.4,0.13647104]
[1768942597813,0.88670852,3004.6,3003.4,0.13647104]
[1768942598013,0.00279611,3005.2,3003.4,0.13647104]
[1768942598213,0.88674066,3005.1,3003.4,0.13647104]
[1768942598515,0.88674066,3005.0,3003.4,0.13647104]
[1768942598714,0.88674066,3004.9,3003.4,0.13647104]
[1768942598916,0.88674066,3004.8,3003.4,0.13647104]
[1768942599122,0.88674066,3004.7,3003.4,0.13647104]
[1768942599419,1.80085562,3004.5,3003.3,0.00295689]
[1768942599610,0.88674066,3004.4,3003.3,0.00295689]
[1768942603618,1.05335066,3004.4,3003.3,0.00295689]
[1768942603818,0.88674066,3004.3,3003.3,0.00295689]
[1768942604124,1.80085562,3004.1,3002.6,0.13647104]
[1768942604322,0.88674066,3004.0,3002.6,0.13647104]
[1768942605115,0.88674066,3004.0,3002.6,0.13947965]
[1768942608923,1.16639921,3003.5,3002.6,0.13947965]
[1768942612924,1.1663307,3003.9,3002.6,0.13947965]
[1768942614124,1.1663307,3003.6,3002.6,0.00300861]
[1768942619222,0.16665,3003.7,3002.6,0.14691011]
[1768942620328,1.1663307,3003.6,3002.6,0.00300861]
[1768942621228,1.1663307,3004.2,3002.6,0.00300861]
[1768942621229,1.3329507,3004.2,3002.6,0.14691011]
[1768942621434,0.88436574,3004.1,3002.6,0.14691011]
[1768942621636,0.88436574,3004.0,3002.6,0.14691011]
[1768942621827,0.88436574,3003.9,3002.6,0.14691011]
[1768942622029,0.88436574,3003.8,3002.6,0.14691011]
[1768942622229,0.16663,3004.1,3002.6,0.14691011]
[1768942622433,1.1663307,3003.8,3002.6,0.14691011]
[1768942625335,1.1663307,3004.4,3002.6,0.14691011]
[1768942625545,0.88484279,3004.3,3003.1,0.1439015]
[1768942625743,0.16661,3004.5,3003.1,0.1439015]
[1768942625941,0.88474987,3004.4,3003.1,0.1439015]
[1768942626146,1.1663307,3005.1,3003.1,0.1439015]
[1768942626345,0.88474675,3005.0,3003.1,0.1439015]
[1768942626548,0.88474675,3004.9,3003.4,0.1439015]
[1768942626945,1.1663307,3005.1,3003.4,0.1439015]
[1768942627136,0.88482849,3005.0,3003.4,0.1439015]
[1768942627339,1.1663307,3005.1,3003.4,0.1439015]
[1768942627541,0.88476853,3005.0,3003.7,0.1439015]
[1768942627741,0.00279611,3005.2,3003.7,0.1439015]
[1768942627942,0.88476203,3005.1,3003.7,0.1439015]
[1768942628246,1.1663307,3005.1,3003.7,0.1439015]
[1768942629749,0.00279611,3005.2,3003.7,0.1439015]
[1768942630050,0.88439874,3005.1,3003.7,0.1439015]
[1768942630239,0.00279611,3005.2,3003.7,0.1439015]
[1768942631745,1.1663307,3005.1,3003.7,0.1439015]
[1768942632549,1.1663307,3004.8,3003.1,0.1439015]
[1768942632753,1.1663307,3004.5,3003.1,0.1439015]
[1768942633051,1.1663307,3004.2,3003.1,0.1439015]
[1768942633247,1.1663307,3004.2,3002.6,0.00300861]
[1768942633455,1.1663307,3003.9,3002.6,0.14691011]
[1768942634752,1.1663307,3003.6,3002.6,0.14691011]
[1768942635054,0.16663,3004.0,3002.6,0.00300861]
[1768942635247,0.88442416,3003.9,3002.6,0.00300861]
[1768942635555,0.16663,3004.0,3002.6,0.00300861]
[1768942635757,0.88440126,3003.9,3002.6,0.00300861]
[1768942635948,0.16663,3004.0,3002.6,0.00300861]
[1768942636151,0.88438812,3003.9,3002.6,0.00300861]
[1768942636450,0.16663,3004.0,3002.6,0.00300861]
[1768942636654,0.88437671,3003.9,3002.6,0.00300861]
[1768942636852,0.16663,3004.0,3002.6,0.00300861]
[1768942637053,0.1666,3004.6,3002.6,0.14578644]
[1768942637256,0.88432766,3004.5,3002.6,0.14578644]
[1768942637450,0.1666,3004.6,3002.6,0.14578644]
[1768942637451,0.88432766,3004.4,3002.6,0.14578644]
[1768942637644,0.88432766,3004.3,3002.6,0.14578644]
[1768942637855,0.88432766,3004.2,3002.6,0.14578644]
[1768942638054,0.1666,3004.6,3002.6,0.14578644]
[1768942638356,0.88432028,3004.5,3002.6,0.14578644]
[1768942638548,0.88432028,3004.4,3002.6,0.14578644]
[1768942638746,0.1666,3004.6,3002.6,0.14578644]
[1768942638958,0.88425203,3004.5,3002.6,0.14578644]
[1768942639255,0.1666,3004.6,3002.6,0.14578644]
[1768942639450,0.88425898,3004.5,3002.6,0.14578644]
[1768942639653,0.1666,3004.6,3002.6,0.14578644]
[1768942639854,0.8842587,3004.5,3002.6,0.14578644]
[1768942640154,0.1666,3004.6,3002.6,0.14578644]
[1768942640355,0.88437014,3004.5,3002.6,0.14578644]
[1768942640549,0.18413719,3004.3,3002.6,0.00300861]
[1768942640749,0.88437014,3004.2,3002.6,0.00300861]
[1768942640948,0.88437014,3004.2,3002.6,0.14578644]
[1768942643358,0.16662,3004.3,3002.6,0.14578644]
[1768942644050,0.88444269,3004.2,3002.6,0.14578644]
[1768942644252,0.16662,3004.3,3002.6,0.14578644]
[1768942644559,0.8844708,3004.2,3002.6,0.14578644]
[1768942644761,0.16662,3004.3,3002.6,0.14578644]
[1768942644959,0.88447076,3004.2,3002.6,0.14578644]
[1768942645161,0.16662,3004.3,3002.6,0.14578644]
[1768942645360,0.88454506,3004.2,3002.6,0.14578644]
[1768942645662,0.16662,3004.3,3002.6,0.14578644]
[1768942645862,0.88451507,3004.2,3002.6,0.14578644]
[1768942646059,0.16662,3004.3,3002.6,0.14578644]
[1768942646363,0.88451479,3004.2,3002.6,0.14578644]
[1768942646562,0.16662,3004.3,3002.6,0.14578644]
[1768942646758,0.16663,3004.0,3002.6,0.14578644]
[1768942646965,0.16663,3004.0,3002.6,0.00300861]
[1768942647165,0.88461098,3003.9,3002.6,0.00300861]
[1768942647360,0.16663,3004.0,3002.6,0.00300861]
[1768942647655,0.88460663,3003.9,3002.6,0.00300861]
[1768942647862,0.89851843,3003.8,3001.8,0.14277783]
[1768942648061,0.16666,3003.5,3001.8,0.14277783]
[1768942648365,0.88460663,3003.4,3001.8,0.14277783]
[1768942648861,0.88460663,3003.4,3001.8,0.14629224]
[1768942651063,0.16666,3003.5,3001.8,0.14629224]
[1768942654867,0.88373751,3003.4,3001.8,0.14629224]
[1768942655062,0.16666,3003.5,3001.8,0.14629224]
[1768942655264,0.88373752,3003.4,3001.8,0.14629224]
[1768942655566,0.16666,3003.5,3001.8,0.14629224]
[1768942655760,0.88360173,3003.4,3001.8,0.14629224]
[1768942655961,0.16666,3003.5,3001.8,0.14629224]
[1768942657264,0.88357635,3003.4,3001.8,0.14629224]
[1768942657466,0.16668,3003.1,3001.8,0.14629224]
[1768942657963,0.01742439,3003.1,3001.1,0.14277783]
[1768942658171,0.1667,3002.7,3001.1,0.14277783]
[1768942658666,1.80014344,3003.5,3001.1,0.14277783]
[1768942658667,0.16668,3003.2,3001.1,0.14277783]
[1768942658865,0.88349634,3003.1,3001.1,0.14277783]
[1768942659068,0.88349634,3003.0,3001.1,0.14555782]
[1768942659270,0.88349634,3002.9,3001.1,0.14555782]
[1768942659469,0.17023972,3003.1,3001.1,0.14555782]
[1768942659670,1.05025842,3003.0,3001.1,0.14555782]
[1768942659871,0.88356842,3002.9,3001.1,0.14555782]
[1768942660073,0.16669,3003.0,3001.1,0.14555782]
[1768942660364,0.88367355,3002.9,3001.1,0.14555782]
[1768942660570,0.16669,3003.0,3001.1,0.14555782]
[1768942661670,0.1667,3002.8,3001.1,0.14555782]
[1768942669283,0.00355972,3003.1,3001.1,0.14555782]
[1768942669480,0.88429472,3003.0,3001.2,0.1432157]
[1768942669781,0.00355972,3003.1,3001.2,0.1432157]
[1768942669982,0.88428383,3003.0,3001.3,0.1432157]
[1768942670275,0.00355972,3003.1,3001.4,0.16677]
[1768942670469,0.00355972,3003.1,3001.5,0.1432157]
[1768942670670,0.88452316,3003.0,3001.5,0.1432157]
[1768942670980,0.00355972,3003.1,3001.5,0.1432157]
[1768942671183,0.88450579,3003.0,3001.5,0.1432157]
[1768942671383,0.00355972,3003.1,3001.5,0.1432157]
[1768942671579,0.88458075,3003.0,3001.5,0.1432157]
[1768942671774,0.00355972,3003.1,3001.5,0.1432157]
[1768942672479,0.88469117,3003.0,3001.5,0.1432157]
[1768942672680,0.00355972,3003.1,3001.5,0.1432157]
[1768942672981,0.88472332,3003.0,3001.5,0.1432157]
[1768942673193,0.00355972,3003.1,3001.5,0.1432157]
[1768942673385,0.88498252,3003.0,3001.5,0.1432157]
[1768942673578,0.88499356,3002.9,3001.5,0.1432157]
[1768942673880,0.17023972,3003.1,3001.5,0.1432157]
[1768942673881,0.88500658,3002.8,3001.5,0.1432157]
[1768942674089,0.88500658,3002.7,3001.5,0.1432157]
[1768942674270,0.16669,3003.0,3001.5,0.1432157]
[1768942674581,0.88528769,3002.9,3001.5,0.1432157]
[1768942674782,0.88528769,3002.8,3001.5,0.1432157]
[1768942674985,0.88528769,3002.7,3001.5,0.1432157]
[1768942675679,0.88528769,3002.7,3001.1,0.00277999]
[1768942675680,0.88528769,3002.7,3001.1,0.14599569]
[1768942675879,1.80120741,3002.4,3001.1,0.14599569]
[1768942677484,0.88640546,3002.3,3001.1,0.14599569]
[1768942677785,2.06753844,3002.4,3001.1,0.14599569]
[1768942677984,0.88641342,3002.3,3001.1,0.14599569]
[1768942678186,1.80120741,3002.4,3001.1,0.14599569]
[1768942678483,0.88627692,3002.3,3001.1,0.14599569]
[1768942678787,1.80120741,3002.4,3001.1,0.14599569]
[1768942679084,0.88627428,3002.3,3001.1,0.14599569]
[1768942679286,1.80120741,3002.4,3001.1,0.14599569]
[1768942679488,0.88616817,3002.3,3001.1,0.14599569]
[1768942679684,1.80120741,3002.4,3001.1,0.14599569]
[1768942679874,0.88618056,3002.3,3001.1,0.14599569]
[1768942680080,0.16671,3002.7,3001.1,0.14599569]
[1768942680390,0.88612189,3002.6,3001.1,0.14599569]
[1768942680585,0.88615184,3002.5,3001.1,0.14599569]
[1768942680781,0.16671,3002.7,3001.1,0.14599569]
[1768942680985,1.80120741,3002.5,3001.1,0.14599569]
[1768942681187,0.88615423,3002.4,3001.1,0.14599569]
[1768942682696,0.16671,3002.7,3001.1,0.14599569]
[1768942682893,0.88629595,3002.6,3001.1,0.14599569]
[1768942683081,0.16671,3002.7,3001.1,0.14599569]
[1768942683082,0.88629595,3002.5,3001.1,0.14599569]
[1768942683390,0.88649575,3002.4,3001.1,0.14599569]
[1768942683590,0.16671,3002.7,3001.1,0.14599569]
[1768942683793,0.88651088,3002.6,3001.1,0.14599569]
[1768942683981,0.88651088,3002.5,3001.1,0.14599569]
[1768942684279,0.88651088,3002.4,3001.1,0.14599569]
[1768942684474,0.16671,3002.7,3001.1,0.14599569]
[1768942684675,0.88676046,3002.6,3001.1,0.14599569]
[1768942684876,0.88676046,3002.5,3001.1,0.14599569]
[1768942685076,0.16671,3002.7,3001.3,0.1432157]
[1768942685388,0.88670778,3002.6,3001.3,0.1432157]
[1768942685682,0.88670778,3002.5,3001.3,0.1432157]
[1768942685883,0.16671,3002.7,3001.3,0.1432157]
[1768942686084,0.88698027,3002.6,3001.3,0.1432157]
[1768942686388,0.88698027,3002.5,3001.3,0.1432157]
[1768942686586,0.88698027,3002.4,3001.3,0.1432157]
[1768942686889,0.16671,3002.7,3001.3,0.1432157]
[1768942687083,0.88737523,3002.6,3001.3,0.1432157]
[1768942687390,0.88737523,3002.5,3001.3,0.1432157]
[1768942687584,0.88737523,3002.4,3001.3,0.1432157]
[1768942687891,0.88737523,3002.3,3001.3,0.1432157]
[1768942688092,0.16671,3002.7,3001.3,0.1432157]
[1768942688389,0.88786845,3002.6,3001.3,0.1432157]
[1768942688584,0.88786845,3002.5,3001.3,0.1432157]
[1768942688785,0.88786845,3002.4,3001.3,0.1432157]
[1768942688985,0.16671,3002.7,3001.3,0.1432157]
[1768942689189,0.88787026,3002.6,3001.3,0.1432157]
[1768942690092,0.88784474,3002.5,3001.3,0.1432157]
[1768942690290,2.23901854,3003.3,3001.3,0.1432157]
[1768942690490,0.8878038,3003.0,3001.3,0.1432157]
[1768942690695,0.8878038,3002.9,3001.3,0.1432157]
[1768942690894,0.8878038,3002.8,3001.3,0.1432157]
[1768942691191,0.8878038,3002.7,3001.3,0.1432157]
[1768942691389,0.8878038,3002.6,3001.3,0.1432157]
[1768942691587,0.8878038,3002.5,3001.3,0.1432157]
[1768942691793,0.17023972,3003.1,3001.3,0.1432157]
[1768942691994,0.88781657,3003.0,3001.3,0.1432157]
[1768942692290,0.88781657,3002.9,3001.3,0.1432157]
[1768942692479,0.88781657,3002.8,3001.3,0.1432157]
[1768942692686,0.88781657,3002.7,3001.3,0.1432157]
[1768942692897,0.88781657,3002.6,3001.3,0.1432157]
[1768942693080,0.88781657,3002.5,3001.3,0.1432157]
[1768942693387,1.80120741,3002.9,3001.3,0.1432157]
[1768942693582,0.88776564,3002.8,3001.3,0.1432157]
[1768942693783,0.88776564,3002.7,3001.3,0.1432157]
[1768942693983,0.88776564,3002.6,3001.3,0.1432157]
[1768942694193,0.17023972,3003.1,3001.3,0.1432157]
[1768942694393,0.88771688,3003.0,3001.3,0.1432157]
[1768942694691,0.88771688,3002.9,3001.3,0.1432157]
[1768942694883,0.88771688,3002.8,3001.3,0.1432157]
[1768942695082,0.88771688,3002.7,3001.3,0.1432157]
[1768942695281,0.88771688,3002.6,3001.3,0.1432157]
[1768942695490,0.17023972,3003.1,3001.3,0.1432157]
[1768942695690,0.88770505,3003.0,3001.3,0.1432157]
[1768942695892,0.88770505,3002.9,3001.3,0.1432157]
[1768942696093,0.88770505,3002.8,3001.3,0.1432157]
[1768942696391,0.88770505,3002.7,3001.3,0.1432157]
[1768942696592,0.88770505,3002.6,3001.3,0.1432157]
[1768942696797,0.17023972,3003.1,3001.3,0.1432157]
[1768942696982,0.88767805,3003.0,3001.3,0.1432157]
[1768942697188,0.88767805,3002.9,3001.3,0.1432157]
[1768942697388,0.88767805,3002.8,3001.3,0.1432157]
[1768942697590,0.88767805,3002.7,3001.3,0.1432157]
[1768942697788,0.17023972,3003.1,3001.3,0.1432157]
[1768942697996,0.88763189,3003.0,3001.3,0.1432157]
[1768942698193,0.88763189,3002.9,3001.3,0.1432157]
[1768942698389,0.88763189,3002.8,3001.3,0.1432157]
[1768942698583,0.88763189,3002.7,3001.3,0.1432157]
[1768942698788,0.8876357,3002.6,3001.3,0.1432157]
[1768942698984,0.17023972,3003.1,3001.3,0.1432157]
[1768942699190,0.88764583,3003.0,3001.3,0.1432157]
[1768942699391,0.88764583,3002.9,3001.3,0.1432157]
[1768942699699,0.88764583,3002.8,3001.3,0.1432157]
[1768942699997,0.88764583,3002.7,3001.3,0.1432157]
[1768942700199,0.88764583,3002.6,3001.3,0.1432157]
[1768942700400,0.17023972,3003.1,3001.3,0.1432157]
[1768942700700,0.88763005,3003.0,3001.3,0.1432157]
[1768942700903,1.16701523,3002.8,3001.7,1.16701523]
[1768942701200,0.88763005,3002.7,3001.7,1.31399032]
[1768942701392,0.88763005,3002.6,3001.7,1.31399032]
[1768942701592,1.16701523,3002.8,3001.7,1.31399032]
[1768942701789,1.16701523,3002.6,3001.5,1.16701523]
[1768942701993,0.88762989,3002.5,3001.4,0.14697509]
[1768942702199,1.16701523,3002.4,3001.4,0.14697509]
[1768942702704,1.16701523,3002.2,3001.1,0.00277999]
[1768942702896,1.16701523,3002.2,3001.1,1.31677031]
[1768942703401,1.16701523,3002.2,3001.1,0.14975508]
[1768942703804,0.88782209,3002.1,3001.1,0.14975508]
[1768942703999,1.16701523,3002.2,3001.1,0.14975508]
[1768942704201,0.88782183,3002.1,3001.1,0.14975508]
[1768942704398,1.16701523,3002.2,3001.1,0.14975508]
[1768942704597,0.88777659,3002.1,3001.1,1.31677031]
[1768942704803,1.16701523,3002.2,3001.1,0.14975508]
[1768942704995,0.88780554,3002.1,3001.1,0.14975508]
[1768942705298,1.16701523,3002.0,3001.1,0.14975508]
[1768942706092,1.16701523,3002.0,3001.1,1.31677031]
[1768942706293,1.16701523,3002.2,3001.2,0.14697509]
[1768942707405,1.16701523,3002.4,3001.3,1.31399032]
[1768942707605,0.88766386,3002.3,3001.3,1.31399032]
[1768942707795,0.88766386,3002.2,3001.3,1.31399032]
[1768942708098,1.16701523,3002.4,3001.3,1.31399032]
[1768942708304,0.88766378,3002.3,3001.3,1.31399032]
[1768942708604,2.05467901,3002.2,3001.3,1.31399032]
[1768942708805,1.16701523,3002.2,3001.3,1.31399032]
[1768942710202,1.16701523,3002.7,3001.7,1.16701523]
[1768942710408,0.88767812,3002.6,3001.7,1.31399032]
[1768942710603,0.00355972,3003.1,3002.5,1.31399032]
[1768942710804,1.16701523,3003.9,3002.8,1.16701523]
[1768942711002,0.26186063,3004.0,3002.5,0.14697509]
[1768942711208,0.16664,3003.9,3001.9,0.14697509]
[1768942711506,1.7992603,3003.6,3001.9,0.14697509]
[1768942711706,0.16667,3003.4,3001.9,0.14697509]
[1768942711902,1.7992603,3003.2,3001.5,0.14697509]
[1768942713408,0.16668,3003.1,3001.5,0.14697509]
[1768942714305,0.00264871,3003.6,3001.9,0.14697509]
[1768942715113,1.9659203,3003.5,3001.9,0.14697509]
[1768942715707,0.16667,3003.4,3001.9,0.14697509]
[1768942717714,1.7992603,3003.5,3001.9,0.14697509]
[1768942717914,0.00264871,3003.6,3001.1,1.80204029]
[1768942717915,1.9659403,3003.1,3001.5,0.14697509]
[1768942718515,0.16668,3003.1,3001.5,0.14697509]
[1768942719723,0.16669,3003.0,3001.5,0.14697509]
[1768942720827,0.00264871,3003.6,3001.7,0.14697509]
[1768942721027,0.16666,3003.5,3001.7,0.14697509]
[1768942722632,0.16666,3003.5,3002.1,0.14697509]
[1768942722819,0.00264871,3003.6,3002.1,0.14697509]
[1768942725130,0.8760426,3003.5,3002.1,0.14697509]
[1768942725329,0.00264871,3003.6,3002.1,0.14697509]
[1768942725831,0.00264871,3003.6,3001.7,0.14886949]
[1768942726018,0.16669,3003.0,3001.7,0.14886949]
[1768942728334,0.16669,3002.9,3001.2,0.14886949]
[1768942729021,0.1667,3002.7,3001.2,0.14886949]
[1768942733535,0.1667,3002.7,3001.5,0.14886949]
[1768942734433,0.16667,3003.3,3001.5,0.14886949]
[1768942734632,0.16667,3003.3,3001.4,1.7992603]
[1768942734633,0.16667,3003.3,3001.9,0.14886949]
[1768942740834,0.16669,3003.0,3001.5,0.14886949]
[1768942741040,0.8766971,3002.9,3001.5,0.14886949]
[1768942741231,0.16669,3003.0,3001.5,0.14886949]
[1768942741635,1.04348028,3002.9,3001.5,0.14886949]
[1768942741937,0.16669,3002.9,3001.5,0.14886949]
[1768942742728,0.87683629,3002.8,3001.5,0.14886949]
[1768942742936,0.16669,3002.9,3001.5,0.14886949]
[1768942743240,0.16666,3003.5,3001.6,0.14886949]
[1768942743438,0.00264871,3003.6,3001.7,0.31562949]
[1768942743633,0.00264871,3003.6,3002.0,0.14886949]
[1768942743837,0.00264871,3003.6,3002.2,0.14886949]
[1768942744141,0.16659,3004.7,3002.2,0.14886949]
[1768942744344,0.87604549,3004.6,3002.8,0.14886949]
[1768942744638,0.16657,3005.1,3003.1,0.14886949]
[1768942744823,1.04250196,3005.0,3003.1,0.14886949]
[1768942745024,1.04250196,3004.9,3003.1,0.14886949]
[1768942745230,0.00344835,3004.9,3003.1,0.14886949]
[1768942745425,0.00344835,3004.9,3003.5,0.14886949]
[1768942745639,0.00344835,3004.9,3003.5,0.15268892]
[1768942748037,0.00344835,3004.9,3003.7,0.14886949]
[1768942748337,0.16654,3005.6,3003.7,0.14886949]
[1768942748539,0.1665,3006.3,3003.8,0.14886949]
[1768942748728,0.16652,3006.1,3003.8,0.14886949]
[1768942748935,1.03845598,3006.0,3003.8,0.14886949]
[1768942749235,0.17081872,3006.0,3004.2,0.14886949]
[1768942749539,0.00429872,3006.0,3004.2,0.14886949]
[1768942750038,0.17081872,3006.0,3004.2,0.14886949]
[1768942752033,0.00429872,3006.0,3004.4,0.14886949]
[1768942752235,0.00429872,3006.0,3004.6,0.14886949]
[1768942752430,0.00429872,3006.0,3004.6,1.94896953]
[1768942752627,0.00429872,3006.0,3004.7,0.14886949]
[1768942752830,13.56645,3007.2,3004.7,0.14886949]
[1768942753031,13.56645,3007.2,3004.9,0.14886949]
[1768942753231,1.79000252,3006.1,3004.9,0.14886949]
[1768942753837,1.79418842,3006.1,3004.9,0.14886949]
[1768942754037,1.79418842,3006.1,3005.1,0.14886949]
[1768942754344,0.0041859,3006.1,3005.1,0.14886949]
[1768942755035,0.16648,3006.8,3005.2,0.14319989]
[1768942755236,0.16644,3007.4,3005.5,0.14319989]
[1768942755439,0.16644,3007.4,3005.7,0.14319989]
[1768942756032,0.99952167,3007.3,3005.7,0.14746295]
[1768942756242,0.16646,3007.2,3005.7,0.00426306]
[1768942756442,0.16646,3007.2,3005.7,0.14746295]
[1768942756743,13.4,3007.1,3005.7,3.47946295]
[1768942757343,13.4,3007.1,3005.8,0.14319989]
[1768942758846,0.99952167,3006.9,3005.7,0.00426306]
[1768942759242,0.16647,3007.0,3005.7,0.14746295]
[1768942759440,13.4,3007.1,3005.7,0.14746295]
[1768942760244,0.99952167,3007.0,3005.7,0.00426306]
[1768942760646,0.99952167,3006.9,3005.7,0.00426306]
[1768942761039,13.4,3007.1,3005.7,0.14746295]
[1768942762150,13.4,3007.1,3005.8,0.14319989]
[1768942762945,13.4,3007.1,3005.9,5.27]
[1768942763147,0.16639,3008.3,3006.0,0.14319989]
[1768942763350,0.16639,3008.3,3006.1,0.14319989]
[1768942763546,0.31180505,3007.8,3005.8,0.14319989]
[1768942763747,0.31180505,3007.8,3006.0,0.14319989]
[1768942763948,1.31132672,3007.8,3006.0,0.14319989]
[1768942764143,0.99952167,3007.5,3006.0,0.14319989]
[1768942764448,0.99952167,3007.4,3005.7,5.27326306]
[1768942764843,0.99952167,3007.3,3005.7,0.00426306]
[1768942765045,0.16646,3007.1,3005.7,0.00426306]
[1768942765444,0.99952167,3006.9,3005.7,0.00426306]
[1768942765953,0.99952167,3006.8,3005.7,0.00426306]
[1768942766245,0.14538505,3007.7,3005.7,0.14746295]
[1768942766442,0.99952167,3007.6,3005.7,0.14746295]
[1768942766645,0.99952167,3007.5,3005.7,0.14746295]
[1768942766851,1.16596167,3007.5,3005.8,3.47419989]
[1768942767039,0.99952167,3007.4,3005.8,3.47419989]
[1768942767354,0.99952167,3007.3,3005.8,3.47419989]
[1768942767555,0.16644,3007.5,3005.9,0.14319989]
[1768942767944,1.16596167,3007.5,3005.9,0.14319989]
[1768942768244,0.99952167,3007.4,3005.9,0.14319989]
[1768942768445,1.16596167,3007.5,3005.9,0.14319989]
[1768942769052,0.00413269,3007.8,3005.9,0.14319989]
[1768942769551,0.00413269,3007.8,3006.1,0.14319989]
[1768942769947,0.00413269,3007.8,3006.2,0.14319989]
[1768942770646,1.00365436,3007.8,3006.2,0.14319989]
[1768942770850,0.99952167,3007.6,3006.2,0.14319989]
[1768942771347,0.99952167,3007.5,3006.2,0.14319989]
[1768942771552,0.99952167,3007.6,3006.2,0.14319989]
[1768942771956,0.99952167,3007.5,3006.2,0.14319989]
[1768942772157,0.99952167,3007.6,3006.2,0.14319989]
[1768942772553,0.99952167,3007.5,3006.2,0.14319989]
[1768942772852,0.99952167,3007.6,3006.2,0.14319989]
[1768942773453,0.00413269,3007.8,3006.2,0.14319989]
[1768942775255,0.14538505,3008.6,3006.3,5.41019989]
[1768942775256,0.31179505,3008.0,3006.3,5.41019989]
[1768942775461,0.16641,3008.0,3006.4,0.14319989]
[1768942775758,0.16641,3008.0,3006.4,5.41019989]
[1768942776259,0.16934377,3008.0,3006.4,2.08019989]
[1768942777060,0.16642,3007.9,3006.4,0.14319989]
[1768942777356,0.16642,3007.9,3006.3,1.937]
[1768942777558,0.16644,3007.5,3005.9,0.14319989]
[1768942777749,0.14831882,3008.0,3005.9,0.14319989]
[1768942778060,1.03659462,3007.9,3005.9,0.14319989]
[1768942778360,0.87017462,3007.8,3005.9,0.14319989]
[1768942778750,1.03659462,3007.8,3005.9,0.14319989]
[1768942778953,0.87017462,3007.7,3006.0,5.267]
[1768942779156,0.87017462,3007.7,3006.0,5.41019989]
[1768942779355,0.87017462,3007.7,3006.1,0.14319989]
[1768942780557,0.87017462,3007.6,3006.1,0.14319989]
[1768942780757,0.87017462,3007.5,3006.1,0.14319989]
[1768942780959,0.14538505,3007.9,3006.1,0.14319989]
[1768942781159,0.16643,3007.6,3006.1,0.14319989]
[1768942781359,0.87224553,3007.5,3006.1,0.14319989]
[1768942781661,0.16645,3007.3,3005.7,0.14746295]
[1768942781852,0.00293377,3008.0,3005.7,0.14746295]
[1768942781853,0.16646,3007.1,3005.7,0.14746295]
[1768942782057,1.03958417,3007.0,3005.7,0.14746295]
[1768942782358,0.14538505,3007.6,3005.7,0.14746295]
[1768942782359,1.03958417,3006.9,3005.7,0.14746295]
[1768942782554,0.16644,3007.5,3005.7,0.14746295]
[1768942782752,1.03986459,3007.4,3005.7,0.14746295]
[1768942782963,1.03987459,3007.3,3005.7,0.14746295]
[1768942783164,0.87342459,3007.2,3005.7,0.00426306]
[1768942783563,0.16646,3007.1,3005.7,0.00426306]
[1768942783766,0.16648,3006.8,3005.7,0.00426306]
[1768942784061,0.16649,3006.6,3005.7,0.00426306]
[1768942787863,0.16646,3007.2,3005.7,0.14700874]
[1768942788060,0.16647,3006.9,3005.7,0.00426306]
[1768942788266,0.16648,3006.7,3005.7,0.00426306]
[1768942789369,0.16646,3007.1,3005.7,0.00426306]
[1768942789568,0.87350779,3007.0,3005.7,0.00426306]
[1768942789762,0.87350779,3006.9,3005.7,0.00426306]
[1768942790070,1.03997779,3006.9,3005.7,0.00426306]
[1768942790366,0.16647,3006.9,3005.7,0.00426306]
[1768942790568,0.14782949,3007.5,3005.7,0.14700874]
[1768942790763,1.03977633,3007.4,3005.7,0.14700874]
[1768942790960,1.03978633,3007.3,3005.7,0.14700874]
[1768942791158,0.16647,3006.9,3005.7,0.00426306]
[1768942791964,0.16647,3006.9,3005.7,0.14700874]
[1768942792170,1.03976514,3006.8,3005.7,0.00426306]
[1768942792358,1.0398044,3006.7,3005.7,0.00426306]
[1768942792559,0.16648,3006.7,3005.7,0.00426306]
[1768942792975,0.8733542,3006.6,3004.7,0.14274568]
[1768942793269,0.16652,3006.1,3004.7,0.14274568]
[1768942793873,0.16652,3006.0,3004.7,0.1458424]
[1768942794168,1.03976418,3005.9,3004.7,0.00309672]
[1768942794360,0.16653,3005.9,3004.7,0.00309672]
[1768942794958,0.87260522,3005.8,3004.7,0.00309672]
[1768942795161,0.16654,3005.7,3004.7,0.00309672]
[1768942795368,0.00429432,3005.8,3003.9,0.14274568]
[1768942795667,0.16648,3006.7,3004.7,0.14274568]
[1768942795965,0.87191776,3006.6,3004.7,0.14274568]
[1768942796265,2.98534828,3007.9,3004.6,1.80010004]
[1768942796266,0.14230073,3008.1,3006.0,0.14274568]
[1768942796564,0.14230073,3008.1,3006.0,0.00346793]
[1768942796565,0.14230073,3007.5,3006.0,0.00346793]
[1768942797661,0.16647,3006.9,3006.0,0.00346793]
[1768942798067,0.16647,3006.9,3005.0,0.14274568]
[1768942798267,0.16643,3007.6,3006.1,0.14274568]
[1768942798967,0.16644,3007.5,3006.1,0.00350767]
[1768942799362,3.331,3008.8,3006.1,0.00350767]
[1768942799363,0.16633,3009.4,3007.5,0.14274568]
[1768942799562,0.13601661,3010.2,3008.3,1.79540952]
[1768942799765,0.01093472,3009.3,3007.0,1.79540952]
[1768942800069,0.01093472,3009.3,3007.8,1.79540952]
[1768942800265,0.01093472,3009.3,3008.2,1.79540952]
[1768942800470,0.0134795,3009.3,3008.2,1.7988556]
[1768942800661,0.0134795,3009.3,3008.3,0.47886505]
[1768942800865,0.01093472,3008.8,3008.4,0.47886505]
[1768942801067,0.01093472,3008.8,3008.5,0.47886505]
[1768942801265,0.01093472,3008.8,3008.6,0.10298496]
[1768942801569,0.01093472,3008.8,3008.2,0.00344608]
[1768942801966,0.01093472,3008.5,3008.2,0.00344608]
[1768942802166,0.00254478,3009.3,3008.2,1.79540952]
[1768942802366,0.00254478,3009.3,3007.3,1.9381552]
[1768942802765,0.00254478,3009.3,3007.4,0.14274568]
[1768942803170,1.79540952,3008.9,3007.4,0.00269785]
[1768942803377,0.16637,3008.7,3007.4,0.00269785]
[1768942805262,0.00254478,3009.3,3007.6,0.14274568]
[1768942805869,0.00254478,3009.3,3008.0,0.14274568]
[1768942808572,1.79540952,3009.2,3007.5,0.14274568]
[1768942809081,0.00254478,3009.3,3007.5,0.14274568]
[1768942809768,1.79540952,3008.6,3007.4,0.00269785]
[1768942811082,1.79540952,3008.9,3007.4,0.00269785]
[1768942811279,0.00254478,3009.3,3007.4,0.14544353]
[1768942812377,0.16634,3009.2,3007.4,0.14544353]
[1768942812777,0.16635,3009.1,3007.4,0.14544353]
[1768942812985,0.16636,3009.0,3007.4,0.14544353]
[1768942813481,0.16636,3009.0,3007.6,0.14274568]
[1768942813981,0.16636,3008.9,3007.6,0.14274568]
[1768942814182,1.79540952,3008.7,3007.4,0.00269785]
[1768942815091,0.00254478,3009.3,3007.4,0.00269785]
[1768942815276,1.79540952,3008.6,3007.4,0.00269785]
[1768942817183,0.00254478,3009.3,3007.4,0.00269785]
[1768942817482,1.79540952,3009.0,3007.4,0.14892117]
[1768942817676,0.00254478,3009.3,3007.4,0.14892117]
[1768942819390,0.00254478,3009.3,3007.6,0.14622332]